[Event "XVI Memorial Lezcano Montalvo 2024"]
[Site "Gran Canaria"]
[Date "2024.03.31"]
[Round "9.20"]
[White "Marrero Cardenes, Agustin"]
[Black "Ramos Santana, Marcelino"]
[Result "1-0"]
[ECO "D15"]
[WhiteElo "2093"]
[BlackElo "1897"]
[Annotator "NA RC"]
[PlyCount "43"]
[EventDate "2024.03.23"]
[EventType "swiss"]
[EventCountry "ESP"]
[SourceTitle "playchess.com"]
[Source "ChessBase"]
[SourceQuality "1"]
[TimeControl "5400+30"]

1. d4 {[%emt 0:00:05]} d5 {[%emt 0:00:40]} 2. Nf3 {[%emt 0:00:08]} Nf6 {[%emt 0:00:26]} 3. c4 {[%emt 0:00:12]} c6 {[%emt 0:00:39]} 4. Nc3 {[%emt 0:00:15]} a6 {[%emt 0:00:08]} 5. a4 {[%emt 0:01:26]} e6 {[%emt 0:00:12]} 6. e3 {[%emt 0:00:43]} Be7 {[%emt 0:01:19]} 7. cxd5 {[%emt 0:03:01]} exd5 {[%emt 0:01:16]} 8. Qc2 {[%emt 0:01:02]} O-O {[%emt 0:01:41]} 9. Bd3 {[%emt 0:00:28]} a5 {[%emt 0:00:28]} 10. Bd2 {[%emt 0:01:51]} Re8 {[%emt 0:02:02]} 11. O-O {[%emt 0:00:13]} Bg4 {[%emt 0:04:27]} 12. Ne5 {[%emt 0:01:02]} Bh5 {[%emt 0:00:14]} 13. f4 {[%emt 0:02:13]} c5 {[%emt 0:03:00]} 14. Bb5 {[%emt 0:04:39]} cxd4 {[%emt 0:06:40]} 15. exd4 {[%emt 0:02:00]} Nfd7 {[%emt 0:05:11]} 16. Nxd7 {[%emt 0:00:52]} Nxd7 {[%emt 0:00:31]} 17. Qf5 {[%emt 0:00:14]} Nf6 {[%emt 0:02:46]} 18. Bxe8 {[%emt 0:00:24]} Qxe8 {[%emt 0:01:01]} 19. Nxd5 {[%emt 0:01:19]} Bg6 {[%emt 0:00:31]} 20. Nxe7+ {[%emt 0:00:24]} Qxe7 {[%emt 0:00:08]} 21. Qe5 {[%emt 0:00:13]} Qd7 {[%emt 0:00:46]} 22. Bc3 {[%emt 0:03:23]} 1-0

[Event "XVI Memorial Lezcano Montalvo 2024"]
[Site "Gran Canaria"]
[Date "2024.03.31"]
[Round "9.21"]
[White "Perez Bolanos, David"]
[Black "Broeder, Hans-Gert"]
[Result "1-0"]
[ECO "D10"]
[WhiteElo "2053"]
[BlackElo "1860"]
[Annotator "NA RC"]
[PlyCount "63"]
[EventDate "2024.03.23"]
[EventType "swiss"]
[EventCountry "ESP"]
[SourceTitle "playchess.com"]
[Source "ChessBase"]
[SourceQuality "1"]
[TimeControl "5400+30"]

1. d4 {[%emt 0:00:30]} d5 {[%emt 0:00:01]} 2. c4 {[%emt 0:00:19]} c6 {[%emt 0:00:06]} 3. Nc3 {[%emt 0:00:21]} dxc4 {[%emt 0:00:25]} 4. e3 {[%emt 0:00:09]} b5 {[%emt 0:00:18]} 5. a4 {[%emt 0:00:08]} b4 {[%emt 0:00:33]} 6. Ne4 {[%emt 0:00:09]} c3 {[%emt 0:05:59]} 7. bxc3 {[%emt 0:01:37]} f5 {[%emt 0:01:12]} 8. Nc5 {[%emt 0:12:30]} e5 {[%emt 0:06:02]} 9. cxb4 {[%emt 0:02:44]} Bxc5 {[%emt 0:05:10]} 10. dxc5 {[%emt 0:04:13]} Qxd1+ {[%emt 0:00:49]} 11. Kxd1 {[%emt 0:00:08]} Be6 {[%emt 0:06:06]} 12. Bb2 {[%emt 0:03:41]} Nd7 {[%emt 0:00:31]} 13. Nf3 {[%emt 0:00:25]} Ngf6 {[%emt 0:07:14]} 14. Nxe5 {[%emt 0:02:26]} Nxe5 {[%emt 0:01:08]} 15. Bxe5 {[%emt 0:00:07]} Ne4 {[%emt 0:02:25]} 16. Ke1 {[%emt 0:02:02]} O-O {[%emt 0:02:43]} 17. f3 {[%emt 0:02:11]} Nf6 {[%emt 0:01:56]} 18. Bxf6 {[%emt 0:02:16]} Rxf6 {[%emt 0:00:02]} 19. Bd3 {[%emt 0:01:09]} Rf7 {[%emt 0:05:32]} 20. Ke2 {[%emt 0:01:57]} Rc7 {[%emt 0:01:05]} 21. Rhc1 {[%emt 0:00:24]} a6 {[%emt 0:04:26]} 22. Bc4 {[%emt 0:00:48]} Kf7 {[%emt 0:00:31]} 23. Bxe6+ {[%emt 0:01:03]} Kxe6 {[%emt 0:02:23]} 24. Rd1 {[%emt 0:02:38]} a5 {[%emt 0:00:30]} 25. Rab1 {[%emt 0:00:30]} axb4 {[%emt 0:00:30]} 26. Rxb4 {[%emt 0:00:30]} Ra5 {[%emt 0:00:30]} 27. Rc4 {[%emt 0:00:30]} Ke7 {[%emt 0:00:30]} 28. Rb4 {[%emt 0:00:44]} Ke6 {[%emt 0:08:41]} 29. Rc4 Ke7 {[%emt 0:01:45]} 30. h4 {[%emt 0:03:14]} Rb7 {[%emt 0:00:46]} 31. Kf2 Rb3 {[%emt 0:36:11]} 32. Rdd4 {[%emt 0:04:53]} 1-0

[Event "XVI Memorial Lezcano Montalvo 2024"]
[Site "Gran Canaria"]
[Date "2024.03.31"]
[Round "9.23"]
[White "Segura Marsa, Andres"]
[Black "Mesa Rodriguez, Antonio"]
[Result "1/2-1/2"]
[ECO "B76"]
[WhiteElo "1987"]
[BlackElo "1697"]
[Annotator "RC"]
[PlyCount "143"]
[EventDate "2024.03.23"]
[EventType "swiss"]
[EventCountry "ESP"]
[SourceTitle "playchess.com"]
[Source "ChessBase"]
[SourceQuality "1"]
[TimeControl "5400+30"]

1. e4 {[%emt 0:00:04]} c5 {[%emt 0:00:03]} 2. Nf3 {[%emt 0:00:07]} d6 {[%emt 0:00:05]} 3. d4 {[%emt 0:00:06]} cxd4 {[%emt 0:00:04]} 4. Nxd4 {[%emt 0:00:09]} Nf6 {[%emt 0:00:24]} 5. Nc3 {[%emt 0:00:08]} g6 {[%emt 0:00:14]} 6. Be3 {[%emt 0:00:22]} Bg7 {[%emt 0:00:07]} 7. f3 {[%emt 0:00:05]} O-O {[%emt 0:00:05]} 8. Qd2 {[%emt 0:00:08]} Nc6 {[%emt 0:00:07]} 9. g4 {[%emt 0:00:08]} h5 {[%emt 0:21:56]} 10. gxh5 {[%emt 0:02:32]} Nxh5 {[%emt 0:00:45]} 11. O-O-O {[%emt 0:00:16]} Bd7 {[%emt 0:08:17]} 12. Be2 {[%emt 0:01:33]} Rc8 {[%emt 0:06:59]} 13. Kb1 {[%emt 0:11:16]} Ne5 {[%emt 0:08:22]} 14. f4 {[%emt 0:01:52]} Nc4 {[%emt 0:01:15]} 15. Bxc4 {[%emt 0:00:10]} Rxc4 {[%emt 0:00:04]} 16. f5 {[%emt 0:00:15]} Qa5 {[%emt 0:21:31]} 17. Rhg1 {[%emt 0:05:52]} gxf5 {[%emt 0:02:11]} 18. Qe2 {[%emt 0:04:09]} Rxc3 {[%emt 0:04:04]} 19. Qxh5 {[%emt 0:01:18]} Rxe3 {[%emt 0:04:33]} 20. Qg5 {[%emt 0:05:17]} Qe5 {[%emt 0:00:31]} 21. Qxe3 {[%emt 0:00:07]} fxe4 {[%emt 0:01:06]} 22. Rg5 {[%emt 0:03:06]} f5 {[%emt 0:00:33]} 23. Qb3+ {[%emt 0:02:55]} e6 {[%emt 0:02:40]} 24. Qxb7 {[%emt 0:01:41]} Rf7 {[%emt 0:00:08]} 25. Qb8+ {[%emt 0:00:09]} Rf8 {[%emt 0:04:59]} 26. Qxa7 {[%emt 0:00:51]} Be8 {[%emt 0:11:36]} 27. Rdg1 {[%emt 0:00:46]} Rf7 {[%emt 0:00:15]} 28. Qb8 {[%emt 0:00:18]} Kf8 {[%emt 0:00:34]} 29. Nc6 {[%emt 0:02:29]} Qd5 {[%emt 0:00:46]} 30. Nd8 {[%emt 0:02:33]} Rd7 {[%emt 0:00:41]} 31. Qc8 {[%emt 0:01:15]} e3 {[%emt 0:00:32]} 32. R5g2 {[%emt 0:08:03]} Qe5 {[%emt 0:00:29]} 33. Qc3 {[%emt 0:02:14]} Qxc3 {[%emt 0:00:30]} 34. bxc3 {[%emt 0:01:10]} Bxc3 {[%emt 0:00:29]} 35. Nxe6+ {[%emt 0:07:31]} Ke7 {[%emt 0:00:07]} 36. Nf4 {[%emt 0:00:05]} Rb7+ {[%emt 0:00:14]} 37. Kc1 {[%emt 0:00:04]} Bc6 {[%emt 0:00:27]} 38. Rg3 {[%emt 0:06:24]} Bd2+ {[%emt 0:00:08]} 39. Kd1 {[%emt 0:00:04]} Bf3+ {[%emt 0:00:26]} 40. Rxf3 {[%emt 0:00:25]} Rb1+ {[%emt 0:00:03]} 41. Ke2 {[%emt 0:00:16]} Rxg1 {[%emt 0:00:05]} 42. Nd5+ {[%emt 0:00:32]} Ke6 {[%emt 0:02:10]} 43. Nxe3 {[%emt 0:00:06]} Bxe3 {[%emt 0:00:03]} 44. Rxe3+ {[%emt 0:02:39]} Kd5 {[%emt 0:01:14]} 45. Kd3 {[%emt 0:03:20]} Ra1 {[%emt 0:00:33]} 46. Re2 {[%emt 0:00:09]} Rd1+ {[%emt 0:00:18]} 47. Kc3 {[%emt 0:00:18]} Rf1 {[%emt 0:00:38]} 48. Kd3 {[%emt 0:03:15]} f4 {[%emt 0:00:36]} 49. c4+ {[%emt 0:00:06]} Kc5 {[%emt 0:00:04]} 50. Rb2 {[%emt 0:01:04]} Rd1+ {[%emt 0:00:50]} 51. Rd2 {[%emt 0:00:40]} Rc1 {[%emt 0:00:32]} 52. Rc2 {[%emt 0:01:19]} Rd1+ {[%emt 0:00:30]} 53. Ke4 {[%emt 0:00:16]} Rd4+ {[%emt 0:00:19]} 54. Kf3 {[%emt 0:00:08]} d5 {[%emt 0:00:45]} 55. cxd5+ {[%emt 0:00:10]} Kxd5 {[%emt 0:00:07]} 56. h4 {[%emt 0:00:17]} Ke5 {[%emt 0:00:19]} 57. Rc5+ {[%emt 0:00:27]} Kf6 {[%emt 0:00:12]} 58. Ra5 {[%emt 0:00:25]} Kg6 {[%emt 0:01:03]} 59. a4 {[%emt 0:01:35]} Kh6 {[%emt 0:00:47]} 60. h5 {[%emt 0:01:12]} Rc4 {[%emt 0:00:25]} 61. Kg4 {[%emt 0:00:26]} Rb4 {[%emt 0:00:23]} 62. Ra6+ {[%emt 0:00:10]} Kg7 {[%emt 0:00:27]} 63. a5 {[%emt 0:00:37]} Ra4 {[%emt 0:00:05]} 64. Ra8 {[%emt 0:04:49]} Kh7 {[%emt 0:01:13]} 65. a6 {[%emt 0:01:42]} Kg7 {[%emt 0:00:25]} 66. Kg5 {[%emt 0:04:06]} f3 {[%emt 0:00:33]} 67. h6+ {[%emt 0:03:58]} Kh7 {[%emt 0:00:23]} 68. Ra7+ {[%emt 0:02:25]} Kg8 {[%emt 0:00:11]} 69. Ra8+ {[%emt 0:02:52]} Kh7 {[%emt 0:00:06]} 70. Rf8 {[%emt 0:02:41]} Rxa6 {[%emt 0:00:23]} 71. Rf7+ {[%emt 0:00:19]} Kh8 {[%emt 0:00:55]} 72. Rxf3 {[%emt 0:01:53]} 1/2-1/2

[Event "XVI Memorial Lezcano Montalvo 2024"]
[Site "Gran Canaria"]
[Date "2024.03.31"]
[Round "9.25"]
[White "Garcia Rodriguez, Adriana"]
[Black "Martin Ramos, Daniel"]
[Result "0-1"]
[ECO "B22"]
[WhiteElo "1854"]
[BlackElo "1961"]
[Annotator "NA RC"]
[PlyCount "112"]
[EventDate "2024.03.23"]
[EventType "swiss"]
[EventCountry "ESP"]
[SourceTitle "playchess.com"]
[Source "ChessBase"]
[SourceQuality "1"]
[TimeControl "5400+30"]

1. e4 {[%emt 0:00:02]} c5 {[%emt 0:00:06]} 2. c3 {[%emt 0:00:03]} e6 {[%emt 0:00:05]} 3. d4 {[%emt 0:00:04]} d5 {[%emt 0:00:03]} 4. exd5 {[%emt 0:00:31]} Qxd5 {[%emt 0:00:07]} 5. Nf3 {[%emt 0:00:07]} Nf6 {[%emt 0:00:13]} 6. Be2 {[%emt 0:01:19]} Nc6 {[%emt 0:02:23]} 7. Na3 {[%emt 0:02:39]} a6 {[%emt 0:00:15]} 8. Nc4 {[%emt 0:01:25]} Qd8 {[%emt 0:00:13]} 9. a4 {[%emt 0:05:30]} cxd4 {[%emt 0:01:08]} 10. Nxd4 {[%emt 0:01:38]} Nxd4 {[%emt 0:00:50]} 11. Qxd4 {[%emt 0:00:21]} Qxd4 {[%emt 0:00:05]} 12. cxd4 {[%emt 0:00:01]} Bd7 {[%emt 0:02:19]} 13. Bf4 {[%emt 0:14:03]} Bb4+ {[%emt 0:00:36]} 14. Kf1 {[%emt 0:01:28]} Bc6 {[%emt 0:00:24]} 15. Nb6 {[%emt 0:01:07]} Rd8 {[%emt 0:00:08]} 16. Rd1 {[%emt 0:00:14]} Nd5 {[%emt 0:00:33]} 17. Nxd5 {[%emt 0:01:00]} Bxd5 {[%emt 0:00:05]} 18. Rc1 {[%emt 0:02:53]} O-O {[%emt 0:00:16]} 19. f3 {[%emt 0:05:43]} Rc8 {[%emt 0:05:27]} 20. Kf2 {[%emt 0:01:20]} Bb3 {[%emt 0:00:48]} 21. Bd1 {[%emt 0:02:48]} Rxc1 {[%emt 0:00:58]} 22. Bxc1 {[%emt 0:00:02]} Bd5 {[%emt 0:00:09]} 23. Ke3 {[%emt 0:02:04]} Rc8 {[%emt 0:02:29]} 24. Bd2 {[%emt 0:00:26]} Rc4 {[%emt 0:02:22]} 25. Bb3 {[%emt 0:06:50]} Bxd2+ {[%emt 0:00:07]} 26. Kxd2 {[%emt 0:00:03]} Rxd4+ {[%emt 0:00:46]} 27. Kc3 {[%emt 0:00:01]} Rh4 {[%emt 0:00:33]} 28. Rd1 {[%emt 0:01:53]} Rxh2 {[%emt 0:00:06]} 29. Bxd5 {[%emt 0:00:07]} exd5 {[%emt 0:00:05]} 30. Rxd5 {[%emt 0:00:02]} g6 {[%emt 0:00:17]} 31. g4 {[%emt 0:00:40]} Rf2 {[%emt 0:00:19]} 32. Rd3 {[%emt 0:00:06]} Kg7 {[%emt 0:01:03]} 33. b3 {[%emt 0:00:05]} Kf6 {[%emt 0:02:05]} 34. Kd4 {[%emt 0:02:35]} Re2 {[%emt 0:00:42]} 35. Kc5 {[%emt 0:00:36]} Re6 {[%emt 0:01:17]} 36. a5 {[%emt 0:00:33]} Re5+ {[%emt 0:00:17]} 37. Kb6 {[%emt 0:05:00]} Rb5+ {[%emt 0:00:05]} 38. Kc7 {[%emt 0:00:04]} h5 {[%emt 0:00:12]} 39. gxh5 {[%emt 0:00:51]} gxh5 {[%emt 0:00:07]} 40. Rd6+ {[%emt 0:01:34]} Kg5 {[%emt 0:00:25]} 41. f4+ {[%emt 0:05:13]} Kg4 {[%emt 0:03:11]} 42. Rf6 {[%emt 0:00:28]} h4 {[%emt 0:00:32]} 43. Rxf7 {[%emt 0:00:06]} h3 {[%emt 0:00:37]} 44. f5 {[%emt 0:00:26]} Rxf5 {[%emt 0:00:39]} 45. Rg7+ {[%emt 0:00:22]} Rg5 {[%emt 0:00:06]} 46. Rh7 {[%emt 0:00:33]} Rb5 {[%emt 0:00:10]} 47. Rg7+ {[%emt 0:00:04]} Kf3 {[%emt 0:00:09]} 48. Rh7 {[%emt 0:00:16]} Kg2 {[%emt 0:00:23]} 49. Rg7+ {[%emt 0:00:03]} Kh1 {[%emt 0:00:14]} 50. Rg3 {[%emt 0:00:32]} h2 {[%emt 0:00:53]} 51. Kc8 {[%emt 0:00:22]} Rxa5 {[%emt 0:01:09]} 52. Kxb7 {[%emt 0:00:05]} Ra2 {[%emt 0:00:05]} 53. Kb6 {[%emt 0:00:21]} Rg2 {[%emt 0:00:51]} 54. Rh3 {[%emt 0:00:25]} Rg6+ {[%emt 0:00:05]} 55. Kc5 {[%emt 0:00:21]} Kg2 {[%emt 0:00:06]} 56. Rxh2+ {[%emt 0:00:05]} Kxh2 {[%emt 0:00:06]} 0-1

[Event "XVI Memorial Lezcano Montalvo 2024"]
[Site "Gran Canaria"]
[Date "2024.03.31"]
[Round "9.27"]
[White "Gonzalez Martinez, Miguel Angel"]
[Black "Bangiev, Katharina"]
[Result "0-1"]
[ECO "B22"]
[WhiteElo "2158"]
[BlackElo "1779"]
[Annotator "RC"]
[PlyCount "72"]
[EventDate "2024.03.23"]
[EventType "swiss"]
[EventCountry "ESP"]
[SourceTitle "playchess.com"]
[Source "ChessBase"]
[SourceQuality "1"]
[TimeControl "5400+30"]

1. e4 {[%emt 0:00:30]} c5 {[%emt 0:02:06]} 2. c3 {[%emt 0:00:56]} Nf6 {[%emt 0:00:17]} 3. e5 {[%emt 0:00:03]} Nd5 {[%emt 0:00:06]} 4. Bc4 {[%emt 0:00:18]} Nb6 {[%emt 0:02:05]} 5. Bb3 {[%emt 0:00:07]} c4 {[%emt 0:01:31]} 6. Bc2 {[%emt 0:00:08]} Nc6 {[%emt 0:00:49]} 7. Nf3 {[%emt 0:00:06]} d6 {[%emt 0:01:51]} 8. exd6 {[%emt 0:00:48]} Qxd6 {[%emt 0:00:21]} 9. O-O {[%emt 0:00:05]} Bg4 {[%emt 0:02:41]} 10. d4 {[%emt 0:01:12]} cxd3 {[%emt 0:01:44]} 11. Bxd3 {[%emt 0:00:01]} Rd8 {[%emt 0:03:37]} 12. Be2 {[%emt 0:00:30]} e6 {[%emt 0:02:15]} 13. Nbd2 {[%emt 0:01:49]} Qc7 {[%emt 0:04:59]} 14. Qb3 {[%emt 0:01:48]} Bd6 {[%emt 0:04:03]} 15. h3 {[%emt 0:00:07]} Bf5 {[%emt 0:03:38]} 16. a4 {[%emt 0:07:09]} a6 {[%emt 0:08:01]} 17. a5 {[%emt 0:02:05]} Nd5 {[%emt 0:00:41]} 18. Nc4 {[%emt 0:00:56]} Bc5 {[%emt 0:03:59]} 19. Nh4 {[%emt 0:09:17]} O-O {[%emt 0:03:07]} 20. Nxf5 {[%emt 0:00:30]} exf5 {[%emt 0:00:03]} 21. Bg5 {[%emt 0:09:40]} Be7 {[%emt 0:05:42]} 22. Bxe7 {[%emt 0:07:56]} Qxe7 {[%emt 0:02:02]} 23. Rfe1 {[%emt 0:01:10]} Qc7 {[%emt 0:01:33]} 24. Bf3 {[%emt 0:01:19]} g6 {[%emt 0:06:31]} 25. Rad1 {[%emt 0:03:14]} Nf6 {[%emt 0:02:24]} 26. Qb6 {[%emt 0:05:51]} Qxb6 {[%emt 0:01:53]} 27. axb6 {[%emt 0:00:12]} Rxd1 {[%emt 0:01:30]} 28. Rxd1 {[%emt 0:00:03]} Rd8 {[%emt 0:03:10]} 29. Rd6 {[%emt 0:00:24]} Ne4 {[%emt 0:05:27]} 30. Rxd8+ {[%emt 0:05:34]} Nxd8 {[%emt 0:00:12]} 31. Bxe4 {[%emt 0:00:23]} fxe4 {[%emt 0:00:08]} 32. Nd6 {[%emt 0:00:26]} f5 {[%emt 0:00:18]} 33. c4 {[%emt 0:00:10]} Kf8 {[%emt 0:00:36]} 34. c5 {[%emt 0:00:18]} Ke7 {[%emt 0:01:27]} 35. Nxb7 {[%emt 0:00:49]} Nxb7 {[%emt 0:04:44]} 36. c6 {[%emt 0:42:36]} Nd8 0-1

[Event "XVI Memorial Lezcano Montalvo 2024"]
[Site "Gran Canaria"]
[Date "2024.03.31"]
[Round "9.29"]
[White "Guerrero Orihuela, Jose Luis"]
[Black "Cabrera Ramos, Javier"]
[Result "1-0"]
[ECO "A40"]
[WhiteElo "1948"]
[BlackElo "1784"]
[Annotator "NA RC"]
[PlyCount "51"]
[EventDate "2024.03.23"]
[EventType "swiss"]
[EventCountry "ESP"]
[SourceTitle "playchess.com"]
[Source "ChessBase"]
[SourceQuality "1"]
[TimeControl "5400+30"]

1. d4 {[%emt 0:00:05]} e5 {[%emt 0:00:03]} 2. dxe5 {[%emt 0:00:07]} d6 {[%emt 0:00:06]} 3. exd6 {[%emt 0:00:04]} Bxd6 {[%emt 0:00:03]} 4. Nf3 {[%emt 0:00:06]} Nc6 {[%emt 0:00:46]} 5. e3 {[%emt 0:05:04]} Bg4 {[%emt 0:00:44]} 6. Be2 {[%emt 0:00:32]} Qe7 {[%emt 0:00:06]} 7. Nd4 {[%emt 0:01:03]} Nxd4 {[%emt 0:03:47]} 8. Bxg4 {[%emt 0:01:07]} Ne6 {[%emt 0:00:02]} 9. Nc3 {[%emt 0:06:02]} O-O-O {[%emt 0:00:17]} 10. Bd2 {[%emt 0:00:30]} h5 {[%emt 0:01:57]} 11. Bxe6+ {[%emt 0:00:19]} Qxe6 {[%emt 0:00:58]} 12. Qf3 {[%emt 0:00:16]} g5 {[%emt 0:01:53]} 13. O-O-O {[%emt 0:01:30]} Be5 {[%emt 0:00:23]} 14. Kb1 {[%emt 0:02:57]} f5 {[%emt 0:00:28]} 15. Qe2 {[%emt 0:05:44]} Nf6 {[%emt 0:00:32]} 16. h3 {[%emt 0:02:21]} Qb6 {[%emt 0:00:28]} 17. f3 {[%emt 0:07:17]} Nd5 {[%emt 0:00:46]} 18. Qc4 {[%emt 0:05:22]} Rhe8 {[%emt 0:01:25]} 19. e4 {[%emt 0:08:06]} fxe4 {[%emt 0:02:11]} 20. fxe4 {[%emt 0:00:06]} Bxc3 {[%emt 0:03:30]} 21. Bxc3 {[%emt 0:00:10]} Rxe4 {[%emt 0:00:14]} 22. Qd3 {[%emt 0:08:07]} c6 {[%emt 0:12:35]} 23. Ba5 {[%emt 0:03:50]} Qxa5 {[%emt 0:01:21]} 24. Qxe4 {[%emt 0:00:31]} Qb5 {[%emt 0:00:29]} 25. Qd3 {[%emt 0:02:13]} Qc5 {[%emt 0:00:48]} 26. c4 {[%emt 0:00:29]} 1-0

[Event "XVI Memorial Lezcano Montalvo 2024"]
[Site "Gran Canaria"]
[Date "2024.03.31"]
[Round "9.30"]
[White "Quevedo Olivares, Carlos Tomas"]
[Black "de Leon Navarro, Claudio"]
[Result "0-1"]
[ECO "C41"]
[WhiteElo "1763"]
[BlackElo "1931"]
[Annotator "RC"]
[PlyCount "107"]
[EventDate "2024.03.23"]
[EventType "swiss"]
[EventCountry "ESP"]
[SourceTitle "playchess.com"]
[Source "ChessBase"]
[SourceQuality "1"]
[TimeControl "5400+30"]

1. e4 {[%emt 0:02:18]} e5 {[%emt 0:01:15]} 2. Nf3 {[%emt 0:00:07]} Nc6 {[%emt 0:00:48]} 3. Bc4 {[%emt 0:00:04]} Nf6 {[%emt 0:00:44]} 4. O-O {[%emt 0:00:27]} Be7 {[%emt 0:00:24]} 5. Re1 {[%emt 0:00:24]} O-O {[%emt 0:02:51]} 6. d4 {[%emt 0:00:26]} d6 {[%emt 0:04:07]} 7. d5 {[%emt 0:01:41]} Nb8 {[%emt 0:01:09]} 8. Nbd2 {[%emt 0:01:21]} Ne8 {[%emt 0:01:53]} 9. Qe2 {[%emt 0:03:35]} f5 {[%emt 0:04:05]} 10. Nxe5 {[%emt 0:00:45]} dxe5 {[%emt 0:08:03]} 11. d6+ {[%emt 0:00:11]} Kh8 {[%emt 0:00:22]} 12. dxe7 {[%emt 0:00:09]} Qxe7 {[%emt 0:00:52]} 13. exf5 {[%emt 0:00:33]} Bxf5 {[%emt 0:03:19]} 14. Nf3 {[%emt 0:05:44]} Nd6 {[%emt 0:05:22]} 15. Bg5 {[%emt 0:04:53]} Qe8 {[%emt 0:02:38]} 16. Nxe5 {[%emt 0:00:43]} Nc6 {[%emt 0:02:47]} 17. Nxc6 {[%emt 0:07:10]} Qxc6 {[%emt 0:02:38]} 18. Bd3 {[%emt 0:03:46]} Bxd3 {[%emt 0:03:55]} 19. Qxd3 {[%emt 0:00:55]} Qb6 {[%emt 0:02:47]} 20. Be3 {[%emt 0:01:08]} Qb4 {[%emt 0:50:31]} 21. b3 Qxb3 {[%emt 0:00:00]} 22. Bd4 {[%emt 0:01:15]} Qb5 {[%emt 0:00:00]} 23. Qg3 {[%emt 0:03:15]} Nf5 {[%emt 0:00:00]} 24. Qe5 {[%emt 0:09:42]} Nxd4 {[%emt 0:00:00]} 25. Qxd4 {[%emt 0:00:07]} c5 {[%emt 0:00:00]} 26. Re5 {[%emt 0:07:15]} b6 {[%emt 0:00:00]} 27. Rd1 {[%emt 0:07:22]} cxd4 {[%emt 0:00:00]} 28. Rxb5 {[%emt 0:00:17]} Rac8 {[%emt 0:00:00]} 29. Rd2 {[%emt 0:00:49]} d3 {[%emt 0:00:00]} 30. Rb2 {[%emt 0:01:39]} Rfd8 {[%emt 0:00:00]} 31. f3 {[%emt 0:01:20]} dxc2 {[%emt 0:00:00]} 32. Rbxc2 {[%emt 0:01:10]} h6 {[%emt 0:00:00]} 33. Rxd8+ {[%emt 0:00:53]} Rxd8 {[%emt 0:00:00]} 34. Kf2 {[%emt 0:00:12]} Rd3 {[%emt 0:00:00]} 35. Kg3 {[%emt 0:01:00]} Kh7 {[%emt 0:00:00]} 36. Kf4 {[%emt 0:01:43]} Rd5 {[%emt 0:00:00]} 37. Ke4 {[%emt 0:00:47]} Ra5 {[%emt 0:00:00]} 38. f4 {[%emt 0:00:51]} a6 {[%emt 0:01:16]} 39. g4 {[%emt 0:02:59]} Ra3 {[%emt 0:02:08]} 40. Kf5 {[%emt 0:04:00]} Ra5+ {[%emt 0:02:16]} 41. Ke6 {[%emt 0:00:57]} Ra4 {[%emt 0:00:40]} 42. Rf2 {[%emt 0:00:57]} b5 {[%emt 0:01:02]} 43. h4 {[%emt 0:00:19]} a5 {[%emt 0:00:40]} 44. h5 {[%emt 0:01:28]} Ra3 {[%emt 0:01:46]} 45. Kf5 {[%emt 0:08:43]} b4 {[%emt 0:00:20]} 46. g5 {[%emt 0:00:44]} hxg5 {[%emt 0:00:31]} 47. fxg5 {[%emt 0:00:12]} Rc3 {[%emt 0:00:31]} 48. Re2 {[%emt 0:00:57]} a4 {[%emt 0:01:23]} 49. g6+ {[%emt 0:02:51]} Kh6 {[%emt 0:00:11]} 50. Re8 {[%emt 0:00:13]} Rc5+ {[%emt 0:00:31]} 51. Kg4 {[%emt 0:00:26]} Rg5+ {[%emt 0:00:16]} 52. Kf3 {[%emt 0:06:48]} Rxh5 {[%emt 0:00:19]} 53. Re6 {[%emt 0:00:53]} Rb5 {[%emt 0:00:19]} 54. Ke2 {[%emt 0:01:51]} 0-1

[Event "XVI Memorial Lezcano Montalvo 2024"]
[Site "Gran Canaria"]
[Date "2024.03.31"]
[Round "9.31"]
[White "Ramirez Maillo, Juan Adonay"]
[Black "Lorenzo Merino, Hector"]
[Result "1-0"]
[ECO "B07"]
[WhiteElo "1918"]
[BlackElo "1586"]
[Annotator "NA RC"]
[PlyCount "60"]
[EventDate "2024.03.23"]
[EventType "swiss"]
[EventCountry "ESP"]
[SourceTitle "playchess.com"]
[Source "ChessBase"]
[SourceQuality "1"]
[TimeControl "5400+30"]

1. e4 {[%emt 0:00:05]} d6 {[%emt 0:00:02]} 2. d4 {[%emt 0:00:08]} Nf6 {[%emt 0:00:02]} 3. Nc3 {[%emt 0:00:06]} c6 {[%emt 0:00:14]} 4. a4 {[%emt 0:00:10]} Qa5 {[%emt 0:00:18]} 5. Bd3 {[%emt 0:01:22]} e5 {[%emt 0:00:26]} 6. dxe5 {[%emt 0:04:16]} dxe5 {[%emt 0:00:27]} 7. Nf3 {[%emt 0:02:01]} h6 {[%emt 0:00:57]} 8. O-O {[%emt 0:01:32]} Bg4 {[%emt 0:00:22]} 9. h3 {[%emt 0:01:23]} Be6 {[%emt 0:00:09]} 10. Bd2 {[%emt 0:00:19]} Qc7 {[%emt 0:00:06]} 11. a5 {[%emt 0:06:48]} Nbd7 {[%emt 0:00:22]} 12. Ne2 {[%emt 0:03:45]} Nc5 {[%emt 0:00:17]} 13. Ng3 {[%emt 0:03:34]} Nxd3 {[%emt 0:00:19]} 14. cxd3 {[%emt 0:00:09]} Rd8 {[%emt 0:00:56]} 15. Bc3 {[%emt 0:07:22]} Bd6 {[%emt 0:02:19]} 16. Qe2 {[%emt 0:04:48]} O-O {[%emt 0:06:12]} 17. Nh4 {[%emt 0:06:14]} Bc5 {[%emt 0:04:55]} 18. Nhf5 {[%emt 0:01:18]} Kh7 {[%emt 0:01:26]} 19. b4 {[%emt 0:05:26]} Bd6 {[%emt 0:01:07]} 20. Qf3 {[%emt 0:12:51]} Rfe8 {[%emt 0:00:29]} 21. Bd2 {[%emt 0:01:08]} Bf8 {[%emt 0:00:33]} 22. Nxh6 {[%emt 0:02:32]} gxh6 {[%emt 0:00:47]} 23. Qxf6 {[%emt 0:00:08]} Rxd3 {[%emt 0:00:28]} 24. Be3 {[%emt 0:00:53]} Rxe3 {[%emt 0:02:05]} 25. fxe3 {[%emt 0:00:21]} Bxb4 {[%emt 0:00:18]} 26. Nf5 {[%emt 0:05:06]} Bf8 {[%emt 0:00:13]} 27. Rf3 {[%emt 0:00:26]} Bxf5 {[%emt 0:03:43]} 28. Qxf5+ {[%emt 0:01:04]} Kg8 {[%emt 0:03:00]} 29. Rg3+ {[%emt 0:00:16]} Kh8 {[%emt 0:00:00]} 30. Qg4 {[%emt 0:00:22]} Qc8 {[%emt 1:12:58]} 1-0